[Event "January 9 Late 2024"]
[Site "https://www.chess.com"]
[Date "2024.01.09"]
[Round "3"]
[White "Stachanczyk, Jacek"]
[Black "Zavgorodniy, Sergiy"]
[Result "0-1"]
[Board "175"]
[TimeControl "180+1"]
[WhiteFideId "1116657"]
[BlackFideId "14110148"]
[WhiteElo "2402"]
[BlackElo "2617"]
[WhiteTeam "POL"]
[BlackTeam "UKR"]
[WhiteClock "0:00:00"]
[BlackClock "0:00:15"]

1. e4 {[%clk 0:02:57]}  c5 {[%clk 0:03:00]} 2. Nf3 {[%clk 0:02:57]}  Nc6 {[%clk 0:03:01]} 3. d4 {[%clk 0:02:53]}  cxd4 {[%clk 0:03:02]} 4. Nxd4 {[%clk 0:02:54]}  e5 {[%clk 0:03:01]} 5. Nxc6 {[%clk 0:02:51]}  bxc6 {[%clk 0:03:00]} 6. Bc4 {[%clk 0:02:51]}  Nf6 {[%clk 0:03:00]} 7. O-O {[%clk 0:02:49]}  Bc5 {[%clk 0:02:58]} 8. Qe2 {[%clk 0:02:40]}  d6 {[%clk 0:02:57]} 9. Nc3 {[%clk 0:02:31]}  a5 {[%clk 0:02:55]} 10. Be3 {[%clk 0:02:31]}  Bb6 {[%clk 0:02:47]} 11. Rad1 {[%clk 0:02:24]}  Bc7 {[%clk 0:02:40]} 12. Bg5 {[%clk 0:02:22]}  Qe7 {[%clk 0:02:39]} 13. f4 {[%clk 0:02:21]}  h6 {[%clk 0:02:32]} 14. Bh4 {[%clk 0:02:12]}  exf4 {[%clk 0:02:19]} 15. Rxf4 {[%clk 0:01:57]}  g5 {[%clk 0:02:18]} 16. Rxf6 {[%clk 0:01:57]}  Qxf6 {[%clk 0:02:17]} 17. Bg3 {[%clk 0:01:58]}  O-O {[%clk 0:02:13]} 18. Rf1 {[%clk 0:01:49]}  Qg7 {[%clk 0:02:02]} 19. Qh5 {[%clk 0:01:05]}  Be6 {[%clk 0:02:00]} 20. Bd3 {[%clk 0:01:05]}  a4 {[%clk 0:01:53]} 21. h4 {[%clk 0:00:58]}  a3 {[%clk 0:01:52]} 22. hxg5 {[%clk 0:00:56]}  hxg5 {[%clk 0:01:52]} 23. e5 {[%clk 0:00:53]}  dxe5 {[%clk 0:01:46]} 24. Ne4 {[%clk 0:00:52]}  f5 {[%clk 0:01:45]} 25. Nxg5 {[%clk 0:00:52]}  Bxa2 {[%clk 0:00:37]} 26. b3 {[%clk 0:00:43]}  Bxb3 {[%clk 0:00:34]} 27. cxb3 {[%clk 0:00:43]}  Rf6 {[%clk 0:00:31]} 28. Bc4+ {[%clk 0:00:39]}  Kf8 {[%clk 0:00:31]} 29. Nh7+ {[%clk 0:00:31]}  Ke7 {[%clk 0:00:27]} 30. Nxf6 {[%clk 0:00:29]}  a2 {[%clk 0:00:27]} 31. Bh4 {[%clk 0:00:22]}  Bb6+ {[%clk 0:00:22]} 32. Kh2 {[%clk 0:00:20]}  Kd6 {[%clk 0:00:21]} 33. Ne8+ {[%clk 0:00:09]}  Rxe8 {[%clk 0:00:20]} 34. Qxe8 {[%clk 0:00:10]}  Bd4 {[%clk 0:00:20]} 35. Qd8+ {[%clk 0:00:06]}  Kc5 {[%clk 0:00:18]} 36. Qa5+ {[%clk 0:00:05]}  Kd6 {[%clk 0:00:17]} 37. Qxa2 {[%clk 0:00:05]}  Qg4 {[%clk 0:00:17]} 38. Qa3+ {[%clk 0:00:04]}  Bc5 {[%clk 0:00:16]} 39. Be7+ {[%clk 0:00:03]}  Kc7 {[%clk 0:00:15]} 40. Qxc5 {[%clk 0:00:01]}  Qh4+ {[%clk 0:00:14]} 41. Kg1 {[%clk 0:00:00]}  Qg4 {[%clk 0:00:15]} 0-1

[Event "January 9 Late 2024"]
[Site "https://www.chess.com"]
[Date "2024.01.09"]
[Round "3"]
[White "Grycel, Kamil"]
[Black "Buchenau, Frank"]
[Result "0-1"]
[Board "176"]
[TimeControl "180+1"]
[WhiteFideId "1115499"]
[BlackFideId "4604350"]
[WhiteElo "2545"]
[BlackElo "2401"]
[WhiteTeam "POL"]
[BlackTeam "GER"]
[WhiteClock "0:00:02"]
[BlackClock "0:00:13"]

1. d4 {[%clk 0:03:00]}  e6 {[%clk 0:03:00]} 2. Nf3 {[%clk 0:03:00]}  Nf6 {[%clk 0:03:00]} 3. Bf4 {[%clk 0:03:00]}  d5 {[%clk 0:02:59]} 4. e3 {[%clk 0:02:59]}  c5 {[%clk 0:02:59]} 5. c3 {[%clk 0:02:59]}  Nc6 {[%clk 0:02:58]} 6. Nbd2 {[%clk 0:02:59]}  Bd6 {[%clk 0:02:58]} 7. Bg3 {[%clk 0:02:59]}  O-O {[%clk 0:02:55]} 8. Bd3 {[%clk 0:02:56]}  b6 {[%clk 0:02:54]} 9. Ne5 {[%clk 0:02:55]}  Ne7 {[%clk 0:02:33]} 10. f4 {[%clk 0:02:53]}  Nf5 {[%clk 0:02:31]} 11. Bf2 {[%clk 0:02:53]}  Be7 {[%clk 0:02:29]} 12. Qb1 {[%clk 0:02:50]}  Nd6 {[%clk 0:02:18]} 13. Nc6 {[%clk 0:02:47]}  Qd7 {[%clk 0:02:17]} 14. Nxe7+ {[%clk 0:02:47]}  Qxe7 {[%clk 0:02:17]} 15. Bh4 {[%clk 0:02:48]}  Nf5 {[%clk 0:02:06]} 16. Bf2 {[%clk 0:02:45]}  Nd6 {[%clk 0:02:00]} 17. O-O {[%clk 0:02:35]}  Nfe4 {[%clk 0:01:41]} 18. Nxe4 {[%clk 0:02:32]}  Nxe4 {[%clk 0:01:39]} 19. Bxe4 {[%clk 0:02:27]}  dxe4 {[%clk 0:01:39]} 20. Qxe4 {[%clk 0:02:28]}  Bb7 {[%clk 0:01:37]} 21. Qe5 {[%clk 0:02:25]}  f6 {[%clk 0:01:35]} 22. Qh5 {[%clk 0:02:23]}  Be4 {[%clk 0:01:32]} 23. Rac1 {[%clk 0:02:17]}  c4 {[%clk 0:01:26]} 24. Bh4 {[%clk 0:02:11]}  Rab8 {[%clk 0:01:18]} 25. Qb5 {[%clk 0:01:34]}  Rfd8 {[%clk 0:01:13]} 26. b3 {[%clk 0:01:24]}  Rbc8 {[%clk 0:00:53]} 27. Rfd1 {[%clk 0:01:17]}  Rd5 {[%clk 0:00:44]} 28. Qa6 {[%clk 0:00:59]}  Rc7 {[%clk 0:00:41]} 29. b4 {[%clk 0:00:47]}  h6 {[%clk 0:00:36]} 30. Qa3 {[%clk 0:00:46]}  a5 {[%clk 0:00:23]} 31. Qb2 {[%clk 0:00:42]}  axb4 {[%clk 0:00:21]} 32. cxb4 {[%clk 0:00:41]}  b5 {[%clk 0:00:20]} 33. Rc3 {[%clk 0:00:40]}  Ra7 {[%clk 0:00:19]} 34. a3 {[%clk 0:00:40]}  Rd6 {[%clk 0:00:19]} 35. Ra1 {[%clk 0:00:25]}  Rda6 {[%clk 0:00:19]} 36. Qd2 {[%clk 0:00:23]}  Qb7 {[%clk 0:00:18]} 37. Qf2 {[%clk 0:00:22]}  Qa8 {[%clk 0:00:17]} 38. Qb2 {[%clk 0:00:21]}  Kh8 {[%clk 0:00:17]} 39. Be1 {[%clk 0:00:21]}  Kg8 {[%clk 0:00:17]} 40. Bh4 {[%clk 0:00:21]}  Kh8 {[%clk 0:00:17]} 41. h3 {[%clk 0:00:21]}  Kg8 {[%clk 0:00:17]} 42. Kh2 {[%clk 0:00:22]}  Kh8 {[%clk 0:00:18]} 43. Be1 {[%clk 0:00:22]}  Kg8 {[%clk 0:00:18]} 44. Qc1 {[%clk 0:00:20]}  Kh8 {[%clk 0:00:18]} 45. Qb2 {[%clk 0:00:20]}  Kg8 {[%clk 0:00:19]} 46. Ra2 {[%clk 0:00:21]}  Kh8 {[%clk 0:00:19]} 47. Bh4 {[%clk 0:00:19]}  Kg8 {[%clk 0:00:19]} 48. Qa1 {[%clk 0:00:12]}  Kh8 {[%clk 0:00:19]} 49. Qc1 {[%clk 0:00:11]}  Ra4 {[%clk 0:00:19]} 50. Qb2 {[%clk 0:00:09]}  Kg8 {[%clk 0:00:19]} 51. Be1 {[%clk 0:00:06]}  Kh8 {[%clk 0:00:19]} 52. h4 {[%clk 0:00:07]}  h5 {[%clk 0:00:18]} 53. Qe2 {[%clk 0:00:06]}  g6 {[%clk 0:00:17]} 54. Qb2 {[%clk 0:00:05]}  Kg7 {[%clk 0:00:16]} 55. Bg3 {[%clk 0:00:05]}  Kh7 {[%clk 0:00:16]} 56. Qc1 {[%clk 0:00:04]}  Bf5 {[%clk 0:00:15]} 57. Qb2 {[%clk 0:00:03]}  R7a6 {[%clk 0:00:15]} 58. Qc1 {[%clk 0:00:01]}  Rxb4 {[%clk 0:00:15]} 59. axb4 {[%clk 0:00:01]}  Rxa2 {[%clk 0:00:14]} 60. Rc2 {[%clk 0:00:02]}  Rxc2 {[%clk 0:00:13]} 0-1

[Event "January 9 Late 2024"]
[Site "https://www.chess.com"]
[Date "2024.01.09"]
[Round "3"]
[White "Gurevich, Dmitry"]
[Black "Mohammed, Zozek Salah Mohammed"]
[Result "1-0"]
[Board "177"]
[TimeControl "180+1"]
[WhiteFideId "2000407"]
[BlackFideId "4803361"]
[WhiteElo "2527"]
[BlackElo "2399"]
[WhiteTeam "USA"]
[BlackTeam "IRQ"]
[WhiteClock "0:00:48"]
[BlackClock "0:00:14"]

1. d4 {[%clk 0:03:00]}  d5 {[%clk 0:02:57]} 2. c4 {[%clk 0:03:00]}  c6 {[%clk 0:02:57]} 3. e3 {[%clk 0:02:58]}  Nf6 {[%clk 0:02:52]} 4. Nc3 {[%clk 0:02:58]}  e6 {[%clk 0:02:53]} 5. Nf3 {[%clk 0:02:58]}  Nbd7 {[%clk 0:02:53]} 6. Qc2 {[%clk 0:02:58]}  b6 {[%clk 0:02:40]} 7. b3 {[%clk 0:02:57]}  Bb7 {[%clk 0:02:37]} 8. Be2 {[%clk 0:02:56]}  Rc8 {[%clk 0:02:37]} 9. O-O {[%clk 0:02:56]}  c5 {[%clk 0:02:34]} 10. cxd5 {[%clk 0:02:53]}  cxd4 {[%clk 0:02:28]} 11. dxe6 {[%clk 0:02:50]}  dxc3 {[%clk 0:02:22]} 12. exd7+ {[%clk 0:02:44]}  Qxd7 {[%clk 0:02:15]} 13. Ne5 {[%clk 0:02:34]}  Qd5 {[%clk 0:02:05]} 14. Bf3 {[%clk 0:02:32]}  Qxe5 {[%clk 0:02:05]} 15. Bxb7 {[%clk 0:02:32]}  Rc7 {[%clk 0:02:04]} 16. Bf3 {[%clk 0:02:30]}  Bd6 {[%clk 0:02:04]} 17. g3 {[%clk 0:02:29]}  O-O {[%clk 0:02:03]} 18. e4 {[%clk 0:02:29]}  Qe7 {[%clk 0:01:48]} 19. Be3 {[%clk 0:02:21]}  Rfc8 {[%clk 0:01:46]} 20. Rad1 {[%clk 0:02:19]}  Nd7 {[%clk 0:01:12]} 21. Bg4 {[%clk 0:02:09]}  Rd8 {[%clk 0:00:44]} 22. Bxd7 {[%clk 0:02:07]}  Rdxd7 {[%clk 0:00:44]} 23. Rd5 {[%clk 0:02:02]}  Bb4 {[%clk 0:00:35]} 24. Rfd1 {[%clk 0:01:56]}  Rxd5 {[%clk 0:00:34]} 25. Rxd5 {[%clk 0:01:39]}  Rd7 {[%clk 0:00:29]} 26. a3 {[%clk 0:01:31]}  Rxd5 {[%clk 0:00:21]} 27. exd5 {[%clk 0:01:29]}  Bxa3 {[%clk 0:00:19]} 28. Qxc3 {[%clk 0:01:28]}  Bc5 {[%clk 0:00:19]} 29. Qd3 {[%clk 0:01:17]}  Bxe3 {[%clk 0:00:18]} 30. fxe3 {[%clk 0:01:17]}  Qd6 {[%clk 0:00:19]} 31. e4 {[%clk 0:01:12]}  f6 {[%clk 0:00:19]} 32. Kg2 {[%clk 0:01:10]}  a5 {[%clk 0:00:19]} 33. Qb5 {[%clk 0:01:08]}  Kf7 {[%clk 0:00:20]} 34. Kf3 {[%clk 0:01:05]}  Ke7 {[%clk 0:00:20]} 35. h4 {[%clk 0:01:02]}  Qb4 {[%clk 0:00:19]} 36. Qxb4+ {[%clk 0:01:00]}  axb4 {[%clk 0:00:20]} 37. Ke3 {[%clk 0:01:00]}  Kd6 {[%clk 0:00:21]} 38. Kd4 {[%clk 0:00:59]}  h5 {[%clk 0:00:21]} 39. Kc4 {[%clk 0:00:55]}  f5 {[%clk 0:00:21]} 40. exf5 {[%clk 0:00:53]}  Ke5 {[%clk 0:00:22]} 41. Kxb4 {[%clk 0:00:49]}  Kxf5 {[%clk 0:00:22]} 42. Kb5 {[%clk 0:00:48]}  Ke5 {[%clk 0:00:14]} 43. Kc6 {[%clk 0:00:48]} 1-0

[Event "January 9 Late 2024"]
[Site "https://www.chess.com"]
[Date "2024.01.09"]
[Round "3"]
[White "Bonin, Jay"]
[Black "Gavrilov, Maxim"]
[Result "0-1"]
[Board "180"]
[TimeControl "180+1"]
[WhiteFideId "2000644"]
[BlackFideId "24271454"]
[WhiteElo "2317"]
[BlackElo "2461"]
[WhiteTeam "USA"]
[BlackTeam "RUS"]
[WhiteClock "0:00:17"]
[BlackClock "0:01:21"]

1. d4 {[%clk 0:02:54]}  Nf6 {[%clk 0:02:59]} 2. Nf3 {[%clk 0:02:53]}  d5 {[%clk 0:02:59]} 3. c4 {[%clk 0:02:52]}  e6 {[%clk 0:02:59]} 4. Nc3 {[%clk 0:02:49]}  Bb4 {[%clk 0:03:00]} 5. Qa4+ {[%clk 0:02:48]}  Nc6 {[%clk 0:03:00]} 6. Bg5 {[%clk 0:02:47]}  h6 {[%clk 0:03:00]} 7. Bxf6 {[%clk 0:02:46]}  Qxf6 {[%clk 0:03:00]} 8. e3 {[%clk 0:02:45]}  O-O {[%clk 0:03:00]} 9. Rc1 {[%clk 0:02:41]}  Bd7 {[%clk 0:02:58]} 10. Qb3 {[%clk 0:02:39]}  dxc4 {[%clk 0:02:48]} 11. Bxc4 {[%clk 0:02:36]}  Bd6 {[%clk 0:02:48]} 12. Be2 {[%clk 0:02:28]}  e5 {[%clk 0:02:45]} 13. d5 {[%clk 0:02:21]}  Ne7 {[%clk 0:02:35]} 14. O-O {[%clk 0:02:13]}  a6 {[%clk 0:02:34]} 15. Ne4 {[%clk 0:02:07]}  Qg6 {[%clk 0:02:35]} 16. Nxd6 {[%clk 0:02:04]}  Qxd6 {[%clk 0:02:36]} 17. Qxb7 {[%clk 0:02:02]}  Rfc8 {[%clk 0:02:36]} 18. Qb3 {[%clk 0:01:54]}  Rab8 {[%clk 0:02:22]} 19. Qc3 {[%clk 0:01:50]}  e4 {[%clk 0:02:17]} 20. Nd2 {[%clk 0:01:45]}  Qxd5 {[%clk 0:02:03]} 21. Bxa6 {[%clk 0:01:37]}  Bb5 {[%clk 0:01:57]} 22. Bxc8 {[%clk 0:01:31]}  Bxf1 {[%clk 0:01:56]} 23. Bh3 {[%clk 0:01:22]}  Bd3 {[%clk 0:01:55]} 24. Qxc7 {[%clk 0:01:16]}  Rxb2 {[%clk 0:01:55]} 25. Qxe7 {[%clk 0:01:11]}  Rxd2 {[%clk 0:01:55]} 26. g3 {[%clk 0:00:49]}  Be2 {[%clk 0:01:23]} 27. Bc8 {[%clk 0:00:17]}  Rd1+ {[%clk 0:01:21]} 0-1

[Event "January 9 Late 2024"]
[Site "https://www.chess.com"]
[Date "2024.01.09"]
[Round "3"]
[White "Skaric, Djuro"]
[Black "Musalov, Ruslan"]
[Result "0-1"]
[Board "182"]
[TimeControl "180+1"]
[WhiteFideId "934569"]
[BlackFideId "4141490"]
[WhiteElo "2306"]
[BlackElo "2454"]
[WhiteTeam "SRB"]
[BlackTeam "RUS"]
[WhiteClock "0:00:00"]
[BlackClock "0:00:04"]

1. g3 {[%clk 0:03:00]}  g6 {[%clk 0:02:59]} 2. Bg2 {[%clk 0:02:58]}  Bg7 {[%clk 0:02:59]} 3. d3 {[%clk 0:02:58]}  Nf6 {[%clk 0:02:59]} 4. Nc3 {[%clk 0:02:59]}  O-O {[%clk 0:03:00]} 5. e4 {[%clk 0:03:00]}  c5 {[%clk 0:02:59]} 6. h3 {[%clk 0:03:00]}  d6 {[%clk 0:03:00]} 7. Nge2 {[%clk 0:03:00]}  Nc6 {[%clk 0:03:00]} 8. O-O {[%clk 0:03:01]}  Rb8 {[%clk 0:03:00]} 9. f4 {[%clk 0:03:01]}  Nd7 {[%clk 0:02:59]} 10. g4 {[%clk 0:03:01]}  b5 {[%clk 0:02:59]} 11. Ng3 {[%clk 0:03:01]}  b4 {[%clk 0:03:00]} 12. Nce2 {[%clk 0:03:01]}  Nd4 {[%clk 0:03:00]} 13. g5 {[%clk 0:02:54]}  a5 {[%clk 0:02:52]} 14. Nxd4 {[%clk 0:02:54]}  Bxd4+ {[%clk 0:02:51]} 15. Kh1 {[%clk 0:02:53]}  a4 {[%clk 0:02:51]} 16. Rb1 {[%clk 0:02:52]}  Ba6 {[%clk 0:02:50]} 17. Qe2 {[%clk 0:02:40]}  b3 {[%clk 0:02:47]} 18. axb3 {[%clk 0:02:40]}  axb3 {[%clk 0:02:48]} 19. c3 {[%clk 0:02:40]}  Bg7 {[%clk 0:02:48]} 20. Be3 {[%clk 0:02:40]}  Qb6 {[%clk 0:02:43]} 21. Qd2 {[%clk 0:02:39]}  Qb5 {[%clk 0:02:42]} 22. Rfd1 {[%clk 0:02:30]}  Bb7 {[%clk 0:02:20]} 23. c4 {[%clk 0:02:21]}  Qb6 {[%clk 0:02:15]} 24. h4 {[%clk 0:02:19]}  Ra8 {[%clk 0:02:14]} 25. Qf2 {[%clk 0:02:19]}  Ra2 {[%clk 0:02:13]} 26. Rd2 {[%clk 0:02:19]}  Rfa8 {[%clk 0:02:11]} 27. Kh2 {[%clk 0:02:19]}  Ra1 {[%clk 0:02:07]} 28. Rxa1 {[%clk 0:02:17]}  Rxa1 {[%clk 0:02:08]} 29. h5 {[%clk 0:02:17]}  Ra2 {[%clk 0:02:03]} 30. h6 {[%clk 0:02:13]}  Bh8 {[%clk 0:02:03]} 31. e5 {[%clk 0:02:12]}  Bxg2 {[%clk 0:02:01]} 32. Qxg2 {[%clk 0:02:12]}  dxe5 {[%clk 0:02:00]} 33. f5 {[%clk 0:02:13]}  Nf8 {[%clk 0:01:34]} 34. Qd5 {[%clk 0:02:10]}  e6 {[%clk 0:01:31]} 35. fxe6 {[%clk 0:02:00]}  Nxe6 {[%clk 0:01:28]} 36. Ne4 {[%clk 0:01:57]}  Nd4 {[%clk 0:00:48]} 37. Rf2 {[%clk 0:01:51]}  Nf5 {[%clk 0:00:43]} 38. Bxc5 {[%clk 0:01:45]}  Qb8 {[%clk 0:00:35]} 39. Bd6 {[%clk 0:01:40]}  Qa8 {[%clk 0:00:30]} 40. Qb5 {[%clk 0:01:15]}  Ra1 {[%clk 0:00:23]} 41. Ba3 {[%clk 0:01:06]}  Qd8 {[%clk 0:00:07]} 42. Qxb3 {[%clk 0:00:59]}  Nd4 {[%clk 0:00:05]} 43. Qb7 {[%clk 0:00:55]}  Nf5 {[%clk 0:00:04]} 44. Bd6 {[%clk 0:00:47]}  Rd1 {[%clk 0:00:04]} 45. Qd5 {[%clk 0:00:37]}  Qe8 {[%clk 0:00:04]} 46. c5 {[%clk 0:00:29]}  Ne3 {[%clk 0:00:04]} 47. Nf6+ {[%clk 0:00:18]}  Bxf6 {[%clk 0:00:03]} 48. Qf3 {[%clk 0:00:18]}  Rf1 {[%clk 0:00:02]} 49. Qxe3 {[%clk 0:00:18]}  Bxg5 {[%clk 0:00:02]} 50. Qf3 {[%clk 0:00:13]}  Rxf2+ {[%clk 0:00:03]} 51. Qxf2 {[%clk 0:00:13]}  Bf4+ {[%clk 0:00:04]} 52. Kg2 {[%clk 0:00:12]}  f5 {[%clk 0:00:05]} 53. Qc2 {[%clk 0:00:10]}  Qc6+ {[%clk 0:00:05]} 54. Kf2 {[%clk 0:00:09]}  Qh1 {[%clk 0:00:04]} 55. Qc4+ {[%clk 0:00:00]}  Kh8 {[%clk 0:00:04]} 0-1

[Event "January 9 Late 2024"]
[Site "https://www.chess.com"]
[Date "2024.01.09"]
[Round "3"]
[White "Hamitevici, Vladimir"]
[Black "Kostiukov, Alexandr"]
[Result "1-0"]
[Board "192"]
[TimeControl "180+1"]
[WhiteFideId "13902393"]
[BlackFideId "14108100"]
[WhiteElo "2598"]
[BlackElo "2286"]
[WhiteTeam "MDA"]
[BlackTeam "UKR"]
[WhiteClock "0:01:49"]
[BlackClock "0:00:00"]

1. b4 {[%clk 0:03:00]}  Nf6 {[%clk 0:02:55]} 2. Nf3 {[%clk 0:03:00]}  g6 {[%clk 0:02:52]} 3. Bb2 {[%clk 0:03:00]}  Bg7 {[%clk 0:02:53]} 4. e3 {[%clk 0:03:00]}  d5 {[%clk 0:02:52]} 5. c4 {[%clk 0:02:59]}  O-O {[%clk 0:02:48]} 6. Nc3 {[%clk 0:02:56]}  c6 {[%clk 0:02:47]} 7. d4 {[%clk 0:02:53]}  Na6 {[%clk 0:02:33]} 8. a3 {[%clk 0:02:52]}  Nc7 {[%clk 0:02:33]} 9. Qb3 {[%clk 0:02:45]}  Be6 {[%clk 0:02:22]} 10. c5 {[%clk 0:02:45]}  Bg4 {[%clk 0:02:13]} 11. Ne5 {[%clk 0:02:44]}  Bf5 {[%clk 0:02:12]} 12. h3 {[%clk 0:02:43]}  h5 {[%clk 0:01:57]} 13. b5 {[%clk 0:02:42]}  Nd7 {[%clk 0:01:31]} 14. bxc6 {[%clk 0:02:35]}  Nxe5 {[%clk 0:01:19]} 15. cxb7 {[%clk 0:02:35]}  Nd3+ {[%clk 0:01:01]} 16. Bxd3 {[%clk 0:02:33]}  Bxd3 {[%clk 0:01:02]} 17. bxa8=Q {[%clk 0:02:32]}  Qxa8 {[%clk 0:00:58]} 18. Nxd5 {[%clk 0:02:26]}  Qxd5 {[%clk 0:00:21]} 19. Qxd3 {[%clk 0:02:25]}  Qxg2 {[%clk 0:00:21]} 20. Ke2 {[%clk 0:02:23]}  Qd5 {[%clk 0:00:16]} 21. e4 {[%clk 0:02:18]}  Qb7 {[%clk 0:00:15]} 22. Bc3 {[%clk 0:02:16]}  Ne6 {[%clk 0:00:15]} 23. Qe3 {[%clk 0:01:59]}  Qb5+ {[%clk 0:00:15]} 24. Kf3 {[%clk 0:01:59]}  Kh7 {[%clk 0:00:12]} 25. Rhb1 {[%clk 0:01:58]}  Qd7 {[%clk 0:00:11]} 26. d5 {[%clk 0:01:57]}  Nd8 {[%clk 0:00:11]} 27. Bxg7 {[%clk 0:01:56]}  Kxg7 {[%clk 0:00:11]} 28. Kg2 {[%clk 0:01:53]}  e6 {[%clk 0:00:11]} 29. c6 {[%clk 0:01:53]}  Qd6 {[%clk 0:00:11]} 30. Rd1 {[%clk 0:01:51]}  exd5 {[%clk 0:00:11]} 31. Qc3+ {[%clk 0:01:48]}  Kh7 {[%clk 0:00:11]} 32. exd5 {[%clk 0:01:48]}  f5 {[%clk 0:00:08]} 33. c7 {[%clk 0:01:48]}  Nb7 {[%clk 0:00:05]} 34. c8=Q {[%clk 0:01:48]}  Rxc8 {[%clk 0:00:01]} 35. Qxc8 {[%clk 0:01:49]}  Nc5 {[%clk 0:00:00]} 36. Rac1 {[%clk 0:01:49]} 1-0

[Event "January 9 Late 2024"]
[Site "https://www.chess.com"]
[Date "2024.01.09"]
[Round "3"]
[White "Dilmukhametov, Artur"]
[Black "Kashefi, Amir Hosein"]
[Result "1-0"]
[Board "193"]
[TimeControl "180+1"]
[WhiteFideId "24179922"]
[BlackFideId "12557935"]
[WhiteElo "2278"]
[BlackElo "2566"]
[WhiteTeam "RUS"]
[BlackTeam "IRI"]
[WhiteClock "0:01:23"]
[BlackClock "0:01:01"]

1. e4 {[%clk 0:03:00]}  c5 {[%clk 0:02:59]} 2. Nf3 {[%clk 0:03:01]}  d6 {[%clk 0:02:59]} 3. Bb5+ {[%clk 0:03:01]}  Bd7 {[%clk 0:02:58]} 4. Bxd7+ {[%clk 0:03:01]}  Qxd7 {[%clk 0:02:59]} 5. O-O {[%clk 0:03:01]}  Nc6 {[%clk 0:02:59]} 6. c3 {[%clk 0:03:01]}  Nf6 {[%clk 0:02:59]} 7. d4 {[%clk 0:03:01]}  cxd4 {[%clk 0:02:55]} 8. cxd4 {[%clk 0:03:02]}  Nxe4 {[%clk 0:02:55]} 9. d5 {[%clk 0:03:03]}  Ne5 {[%clk 0:02:55]} 10. Re1 {[%clk 0:03:03]}  Nxf3+ {[%clk 0:02:54]} 11. Qxf3 {[%clk 0:03:04]}  Nf6 {[%clk 0:02:51]} 12. Nc3 {[%clk 0:03:05]}  O-O-O {[%clk 0:02:51]} 13. Be3 {[%clk 0:02:55]}  Kb8 {[%clk 0:02:51]} 14. Qe2 {[%clk 0:02:35]}  e5 {[%clk 0:02:46]} 15. dxe6 {[%clk 0:02:34]}  fxe6 {[%clk 0:02:46]} 16. a4 {[%clk 0:02:28]}  a6 {[%clk 0:02:39]} 17. a5 {[%clk 0:02:28]}  d5 {[%clk 0:02:36]} 18. Na4 {[%clk 0:02:28]}  Bb4 {[%clk 0:02:34]} 19. Bf4+ {[%clk 0:02:19]}  Ka7 {[%clk 0:02:30]} 20. Nb6 {[%clk 0:02:15]}  Qb5 {[%clk 0:02:25]} 21. Qxb5 {[%clk 0:02:07]}  axb5 {[%clk 0:02:25]} 22. Rxe6 {[%clk 0:02:08]}  Rhe8 {[%clk 0:02:25]} 23. Rxe8 {[%clk 0:01:56]}  Rxe8 {[%clk 0:02:25]} 24. Be3 {[%clk 0:01:56]}  Ka6 {[%clk 0:02:25]} 25. Bd4 {[%clk 0:01:51]}  Rd8 {[%clk 0:02:10]} 26. Kf1 {[%clk 0:01:41]}  Ne4 {[%clk 0:02:07]} 27. Ke2 {[%clk 0:01:32]}  g6 {[%clk 0:02:05]} 28. f3 {[%clk 0:01:26]}  Nd6 {[%clk 0:02:03]} 29. Nxd5 {[%clk 0:01:24]}  Re8+ {[%clk 0:01:01]} 30. Kd3 {[%clk 0:01:23]} 1-0

[Event "January 9 Late 2024"]
[Site "https://www.chess.com"]
[Date "2024.01.09"]
[Round "3"]
[White "Uz, Kagan"]
[Black "Coelho, Ramyres Santana"]
[Result "1-0"]
[Board "194"]
[TimeControl "180+1"]
[WhiteFideId "30986680"]
[BlackFideId "2120690"]
[WhiteElo "2556"]
[BlackElo "2269"]
[WhiteTeam "USA"]
[BlackTeam "BRA"]
[WhiteClock "0:00:24"]
[BlackClock "0:00:56"]

1. e4 {[%clk 0:03:00]}  c5 {[%clk 0:02:56]} 2. Nf3 {[%clk 0:03:00]}  d6 {[%clk 0:02:54]} 3. d4 {[%clk 0:03:01]}  cxd4 {[%clk 0:02:55]} 4. Nxd4 {[%clk 0:03:01]}  Nf6 {[%clk 0:02:55]} 5. Nc3 {[%clk 0:03:01]}  a6 {[%clk 0:02:55]} 6. Bc4 {[%clk 0:03:01]}  e6 {[%clk 0:02:56]} 7. Bb3 {[%clk 0:03:01]}  Be7 {[%clk 0:02:56]} 8. g4 {[%clk 0:03:00]}  O-O {[%clk 0:02:54]} 9. g5 {[%clk 0:02:54]}  Ne8 {[%clk 0:02:54]} 10. f4 {[%clk 0:02:20]}  Nc6 {[%clk 0:02:52]} 11. Be3 {[%clk 0:02:17]}  Nxd4 {[%clk 0:02:49]} 12. Bxd4 {[%clk 0:02:14]}  b5 {[%clk 0:02:50]} 13. Qh5 {[%clk 0:02:03]}  b4 {[%clk 0:02:47]} 14. Ne2 {[%clk 0:02:02]}  Bb7 {[%clk 0:02:40]} 15. Ng3 {[%clk 0:02:00]}  d5 {[%clk 0:02:26]} 16. O-O-O {[%clk 0:01:50]}  a5 {[%clk 0:02:22]} 17. exd5 {[%clk 0:01:32]}  Bxd5 {[%clk 0:02:22]} 18. Bxd5 {[%clk 0:01:32]}  Qxd5 {[%clk 0:02:18]} 19. Kb1 {[%clk 0:01:27]}  Qc6 {[%clk 0:02:12]} 20. f5 {[%clk 0:01:25]}  g6 {[%clk 0:02:01]} 21. Qh6 {[%clk 0:01:13]}  exf5 {[%clk 0:01:54]} 22. Nxf5 {[%clk 0:01:07]}  Qb7 {[%clk 0:01:27]} 23. Nxe7+ {[%clk 0:00:28]}  Qxe7 {[%clk 0:01:28]} 24. Rhe1 {[%clk 0:00:27]}  Qd7 {[%clk 0:01:01]} 25. Rxe8 {[%clk 0:00:25]}  Qxd4 {[%clk 0:00:56]} 26. Qxf8# {[%clk 0:00:24]} 1-0